[Event "Open NK Rapid 2025 bord 26-50"]
[Site "Helmond, Netherlands"]
[Date "2025.05.03"]
[Round "7.19"]
[White "Ten Kate, Gustav"]
[Black "Frederiks, Jesse"]
[Result "0-1"]
[TimeControl "15 min +5 sec increment"]
[WhiteFideId "1095781"]
[BlackFideId "1095790"]
[WhiteElo "1800"]
[BlackElo "1937"]

1. e4 {[%clk 00:15:08]} {[%emt 00:00:02]} e5 {[%clk 00:15:08]} {[%emt
00:00:03]} 2. Nf3 {[%clk 00:15:08]} {[%emt 00:00:03]} Nc6 {[%clk 00:15:12]}
{[%emt 00:00:02]} 3. Bb5 {[%clk 00:15:12]} {[%emt 00:00:02]} a6 {[%clk
00:15:14]} {[%emt 00:00:03]} 4. Ba4 {[%clk 00:15:16]} {[%emt 00:00:01]} Nf6
{[%clk 00:15:17]} {[%emt 00:00:02]} 5. O-O {[%clk 00:15:19]} Be7 {[%clk
00:15:21]} {[%emt 00:00:02]} 6. Re1 {[%clk 00:15:22]} {[%emt 00:00:01]} b5
{[%clk 00:15:25]} {[%emt 00:00:01]} 7. Bb3 {[%clk 00:15:26]} {[%emt 00:00:01]}
O-O {[%clk 00:15:28]} {[%emt 00:00:02]} 8. a4 {[%clk 00:15:30]} {[%emt
00:00:01]} b4 {[%clk 00:15:32]} {[%emt 00:00:01]} 9. d4 {[%clk 00:15:34]}
{[%emt 00:00:01]} d6 {[%clk 00:14:11]} {[%emt 00:01:25]} 10. h3 {[%clk
00:15:00]} {[%emt 00:00:39]} exd4 {[%clk 00:13:52]} {[%emt 00:00:24]} 11. Nxd4
{[%clk 00:15:00]} {[%emt 00:00:05]} Nxd4 {[%clk 00:13:45]} {[%emt 00:00:12]} 12.
Qxd4 {[%clk 00:15:03]} {[%emt 00:00:02]} c5 {[%clk 00:13:32]} {[%emt 00:00:18]}
13. Qd3 {[%clk 00:13:36]} {[%emt 00:01:33]} Bb7 {[%clk 00:13:18]} {[%emt
00:00:18]} 14. Nd2 {[%clk 00:13:36]} {[%emt 00:00:04]} Nd7 {[%clk 00:13:06]}
{[%emt 00:00:18]} 15. Nc4 {[%clk 00:13:07]} {[%emt 00:00:34]} Ne5 {[%clk
00:12:58]} {[%emt 00:00:14]} 16. Nxe5 {[%clk 00:12:36]} {[%emt 00:00:35]} dxe5
{[%clk 00:13:01]} {[%emt 00:00:02]} 17. Bd5 {[%clk 00:10:25]} {[%emt 00:02:17]}
Bxd5 {[%clk 00:12:47]} {[%emt 00:00:18]} 18. exd5 {[%clk 00:10:28]} {[%emt
00:00:02]} Qd6 {[%clk 00:12:31]} {[%emt 00:00:21]} 19. c4 {[%clk 00:09:58]}
{[%emt 00:00:36]} bxc3 {[%clk 00:12:26]} {[%emt 00:00:10]} 20. bxc3 {[%clk
00:09:56]} {[%emt 00:00:07]} Rab8 {[%clk 00:12:07]} {[%emt 00:00:23]} 21. Bd2
{[%clk 00:08:39]} {[%emt 00:01:23]} Rb2 {[%clk 00:11:31]} {[%emt 00:00:41]} 22.
Reb1 {[%clk 00:08:01]} {[%emt 00:00:42]} e4 {[%clk 00:10:47]} {[%emt 00:00:49]}
23. Qe2 {[%clk 00:06:35]} {[%emt 00:01:32]} Rxb1+ {[%clk 00:10:41]} {[%emt
00:00:11]} 24. Rxb1 {[%clk 00:06:39]} Qxd5 {[%clk 00:10:44]} {[%emt 00:00:03]}
25. Be3 {[%clk 00:04:55]} {[%emt 00:01:49]} Qd3 {[%clk 00:10:37]} {[%emt
00:00:12]} 26. Qb2 {[%clk 00:04:59]} {[%emt 00:00:01]} h5 {[%clk 00:09:52]}
{[%emt 00:00:50]} 27. Rc1 {[%clk 00:02:37]} {[%emt 00:02:27]} Qc4 {[%clk
00:09:29]} {[%emt 00:00:27]} 28. a5 {[%clk 00:01:18]} {[%emt 00:01:24]} Rd8
{[%clk 00:07:57]} {[%emt 00:01:37]} 29. Qb7 {[%clk 00:01:12]} {[%emt 00:00:12]}
Bf8 {[%clk 00:07:14]} {[%emt 00:00:48]} 30. Qc7 {[%clk 00:01:13]} {[%emt
00:00:04]} Rd3 {[%clk 00:07:08]} {[%emt 00:00:11]} 31. Qe5 {[%clk 00:01:13]}
{[%emt 00:00:05]} Qd5 {[%clk 00:06:46]} {[%emt 00:00:26]} 32. Qxd5 {[%clk
00:00:53]} {[%emt 00:00:26]} Rxd5 {[%clk 00:06:49]} {[%emt 00:00:01]} 33. Rb1
{[%clk 00:00:52]} {[%emt 00:00:06]} c4 {[%clk 00:05:43]} {[%emt 00:01:12]} 34.
Bb6 {[%clk 00:00:41]} {[%emt 00:00:16]} Bc5 {[%clk 00:05:29]} {[%emt 00:00:19]}
35. Bc7 {[%clk 00:00:16]} {[%emt 00:00:31]} Kh7 {[%clk 00:05:01]} {[%emt
00:00:32]} 36. Kf1 {[%clk 00:00:20]} Rd2 {[%clk 00:04:56]} {[%emt 00:00:09]} 37.
Bg3 {[%clk 00:00:24]} {[%emt 00:00:02]} f5 {[%clk 00:04:51]} {[%emt 00:00:10]}
38. Ke1 {[%clk 00:00:16]} {[%emt 00:00:13]} Ra2 {[%clk 00:04:44]} {[%emt
00:00:12]} 39. Rb7 {[%clk 00:00:12]} {[%emt 00:00:10]} Rxa5 {[%clk 00:04:22]}
{[%emt 00:00:26]} 40. Rc7 {[%clk 00:00:16]} {[%emt 00:00:01]} Ra1+ {[%clk
00:04:20]} {[%emt 00:00:07]} 41. Ke2 {[%clk 00:00:18]} {[%emt 00:00:03]} Ra2+
{[%clk 00:04:23]} {[%emt 00:00:03]} 42. Ke1 {[%clk 00:00:22]} Bb6 {[%clk
00:03:18]} {[%emt 00:01:10]} 43. Rxc4 {[%clk 00:00:26]} {[%emt 00:00:01]} g5
{[%clk 00:02:49]} {[%emt 00:00:34]} 44. Rc6 {[%clk 00:00:30]} Rb2 {[%clk
00:02:53]} {[%emt 00:00:01]} 45. Be5 {[%clk 00:00:27]} {[%emt 00:00:08]} Bxf2+
{[%clk 00:02:49]} {[%emt 00:00:09]} 46. Kd1 {[%clk 00:00:19]} {[%emt 00:00:13]}
Be3 {[%clk 00:02:45]} {[%emt 00:00:08]} 47. Rc7+ {[%clk 00:00:19]} {[%emt
00:00:06]} Kg6 {[%clk 00:02:44]} {[%emt 00:00:06]} 48. c4 {[%clk 00:00:14]}
{[%emt 00:00:11]} Rxg2 {[%clk 00:02:30]} {[%emt 00:00:18]} 49. Rc6+ {[%clk
00:00:18]} {[%emt 00:00:01]} Kh7 {[%clk 00:02:23]} {[%emt 00:00:10]} 50. Rxa6
{[%clk 00:00:21]} {[%emt 00:00:05]} f4 {[%clk 00:02:19]} {[%emt 00:00:09]} 51.
Rf6 {[%clk 00:00:11]} {[%emt 00:00:14]} f3 {[%clk 00:02:08]} {[%emt 00:00:15]}
52. Rf7+ {[%clk 00:00:16]} Kg8 {[%clk 00:02:11]} {[%emt 00:00:03]} 53. Rg7+
{[%clk 00:00:20]} {[%emt 00:00:01]} Kf8 {[%clk 00:02:15]} 54. Ke1 {[%clk
00:00:09]} {[%emt 00:00:16]} f2+ {[%clk 00:02:08]} {[%emt 00:00:12]} 55. Ke2
{[%clk 00:00:13]} Rg1 {[%clk 00:02:12]} {[%emt 00:00:01]} 56. Kxe3 {[%clk
00:00:09]} {[%emt 00:00:08]} f1=Q {[%clk 00:02:16]} {[%emt 00:00:02]} 57. Kxe4
{[%clk 00:00:11]} {[%emt 00:00:03]} Qe2+ {[%clk 00:02:17]} {[%emt 00:00:04]} 58.
Kf5 {[%clk 00:00:15]} {[%emt 00:00:01]} Qxe5+ {[%clk 00:02:21]} 59. Kxe5 {[%clk
00:00:19]} {[%emt 00:00:01]} Kxg7 {[%clk 00:02:26]} {[%emt 00:00:01]} 0-1

[Event "Open NK Rapid 2025 bord 26-50"]
[Site "Helmond, Netherlands"]
[Date "2025.05.03"]
[Round "7.20"]
[White "Van Baaren, Joris"]
[Black "Leenen, Boyd"]
[Result "0-1"]
[TimeControl "15 min +5 sec increment"]
[WhiteFideId "40108929"]
[BlackFideId "1083937"]
[WhiteElo "1796"]
[BlackElo "1931"]

1. e4 {[%clk 00:15:05]} {[%emt 00:00:05]} e5 {[%clk 00:15:08]} {[%emt
00:00:02]} 2. Nf3 {[%clk 00:15:09]} {[%emt 00:00:02]} Nc6 {[%clk 00:15:11]}
{[%emt 00:00:02]} 3. Bb5 {[%clk 00:15:11]} {[%emt 00:00:03]} a6 {[%clk
00:15:14]} {[%emt 00:00:02]} 4. Ba4 {[%clk 00:15:15]} {[%emt 00:00:01]} Nf6
{[%clk 00:15:16]} {[%emt 00:00:02]} 5. d3 {[%clk 00:15:18]} {[%emt 00:00:02]}
Bc5 {[%clk 00:15:17]} {[%emt 00:00:03]} 6. Nc3 {[%clk 00:15:21]} {[%emt
00:00:03]} b5 {[%clk 00:15:16]} {[%emt 00:00:06]} 7. Bb3 {[%clk 00:15:25]}
{[%emt 00:00:01]} d6 {[%clk 00:15:19]} {[%emt 00:00:02]} 8. Bg5 {[%clk
00:15:28]} {[%emt 00:00:02]} h6 {[%clk 00:15:15]} {[%emt 00:00:09]} 9. Bxf6
{[%clk 00:14:50]} {[%emt 00:00:43]} Qxf6 {[%clk 00:15:17]} {[%emt 00:00:03]} 10.
Nd5 {[%clk 00:14:54]} Qd8 {[%clk 00:15:21]} {[%emt 00:00:01]} 11. c3 {[%clk
00:14:55]} {[%emt 00:00:04]} O-O {[%clk 00:15:06]} {[%emt 00:00:19]} 12. h3
{[%clk 00:14:58]} {[%emt 00:00:03]} Ba7 {[%clk 00:15:02]} {[%emt 00:00:09]} 13.
O-O {[%clk 00:14:52]} {[%emt 00:00:11]} Be6 {[%clk 00:15:04]} {[%emt 00:00:02]}
14. a4 {[%clk 00:14:53]} {[%emt 00:00:05]} Kh8 {[%clk 00:14:38]} {[%emt
00:00:31]} 15. axb5 {[%clk 00:14:01]} {[%emt 00:00:57]} axb5 {[%clk 00:14:39]}
{[%emt 00:00:03]} 16. d4 {[%clk 00:13:07]} {[%emt 00:01:00]} Qd7 {[%clk
00:11:07]} {[%emt 00:03:36]} 17. Bc2 {[%clk 00:11:21]} {[%emt 00:01:52]} exd4
{[%clk 00:07:27]} {[%emt 00:03:45]} 18. Nxd4 {[%clk 00:10:32]} {[%emt
00:00:54]} Nxd4 {[%clk 00:07:28]} {[%emt 00:00:04]} 19. cxd4 {[%clk 00:10:34]}
{[%emt 00:00:03]} Bxd5 {[%clk 00:07:26]} {[%emt 00:00:07]} 20. exd5 {[%clk
00:10:37]} {[%emt 00:00:02]} Bb6 {[%clk 00:06:54]} {[%emt 00:00:36]} 21. Qd3
{[%clk 00:10:12]} {[%emt 00:00:30]} g6 {[%clk 00:06:50]} {[%emt 00:00:10]} 22.
Rxa8 {[%clk 00:09:37]} {[%emt 00:00:41]} Rxa8 {[%clk 00:06:51]} {[%emt
00:00:02]} 23. Qe3 {[%clk 00:08:57]} {[%emt 00:00:46]} Kg7 {[%clk 00:06:45]}
{[%emt 00:00:12]} 24. Re1 {[%clk 00:08:41]} {[%emt 00:00:19]} Qd8 {[%clk
00:06:01]} {[%emt 00:00:47]} 25. Bd3 {[%clk 00:07:08]} {[%emt 00:01:41]} Qf6
{[%clk 00:04:41]} {[%emt 00:01:24]} 26. Bxb5 {[%clk 00:05:11]} {[%emt
00:02:03]} Bxd4 {[%clk 00:04:43]} {[%emt 00:00:03]} 27. Qe2 {[%clk 00:05:14]}
{[%emt 00:00:02]} Rb8 {[%clk 00:04:27]} {[%emt 00:00:20]} 28. Rd1 {[%clk
00:03:50]} {[%emt 00:01:30]} Bxf2+ {[%clk 00:01:31]} {[%emt 00:03:01]} 29. Qxf2
{[%clk 00:03:53]} {[%emt 00:00:03]} Qxf2+ {[%clk 00:01:35]} {[%emt 00:00:01]}
30. Kxf2 {[%clk 00:03:56]} Rxb5 {[%clk 00:01:38]} {[%emt 00:00:01]} 31. Rd2
{[%clk 00:04:00]} Kf6 {[%clk 00:01:33]} {[%emt 00:00:12]} 32. Kf3 {[%clk
00:03:20]} {[%emt 00:00:44]} h5 {[%clk 00:01:02]} {[%emt 00:00:36]} 33. Rc2
{[%clk 00:03:00]} {[%emt 00:00:26]} Rc5 {[%clk 00:01:03]} {[%emt 00:00:04]} 34.
Rxc5 {[%clk 00:01:58]} {[%emt 00:01:07]} dxc5 {[%clk 00:01:07]} {[%emt
00:00:01]} 35. Ke4 {[%clk 00:02:02]} Ke7 {[%clk 00:01:07]} {[%emt 00:00:04]} 36.
h4 {[%clk 00:01:48]} {[%emt 00:00:19]} Kd6 {[%clk 00:00:35]} {[%emt 00:00:38]}
37. g3 {[%clk 00:01:28]} {[%emt 00:00:24]} f6 {[%clk 00:00:37]} {[%emt
00:00:03]} 38. b3 {[%clk 00:01:28]} {[%emt 00:00:06]} c6 {[%clk 00:00:38]}
{[%emt 00:00:04]} 39. dxc6 {[%clk 00:01:25]} {[%emt 00:00:08]} Kxc6 {[%clk
00:00:41]} 40. Kd3 {[%clk 00:01:08]} {[%emt 00:00:22]} Kd5 {[%clk 00:00:44]}
{[%emt 00:00:02]} 41. Ke3 {[%clk 00:01:10]} {[%emt 00:00:03]} g5 {[%clk
00:00:44]} {[%emt 00:00:04]} 42. Kd3 {[%clk 00:00:57]} {[%emt 00:00:18]} gxh4
{[%clk 00:00:42]} {[%emt 00:00:08]} 43. gxh4 {[%clk 00:01:01]} {[%emt
00:00:01]} f5 {[%clk 00:00:46]} 44. Ke3 {[%clk 00:01:05]} {[%emt 00:00:01]} Ke5
{[%clk 00:00:48]} {[%emt 00:00:04]} 45. Kf3 {[%clk 00:01:00]} {[%emt 00:00:09]}
f4 {[%clk 00:00:51]} {[%emt 00:00:02]} 46. Kf2 {[%clk 00:00:59]} {[%emt
00:00:06]} Ke4 {[%clk 00:00:56]} 47. Ke2 {[%clk 00:01:03]} {[%emt 00:00:02]}
f3+ {[%clk 00:00:59]} {[%emt 00:00:01]} 48. Kf2 {[%clk 00:01:06]} {[%emt
00:00:03]} 0-1

[Event "Open NK Rapid 2025 bord 26-50"]
[Site "Helmond, Netherlands"]
[Date "2025.05.03"]
[Round "7.21"]
[White "De Wit, Evan"]
[Black "Kazi, Zidan"]
[Result "1-0"]
[TimeControl "15 min +5 sec increment"]
[WhiteFideId "1096389"]
[BlackFideId "40102300"]
[WhiteElo "1917"]
[BlackElo "1818"]

1. d4 {[%clk 00:15:08]} d5 {[%clk 00:15:07]} {[%emt 00:00:04]} 2. c4 {[%clk
00:15:11]} {[%emt 00:00:02]} e6 {[%clk 00:15:03]} {[%emt 00:00:08]} 3. Nc3
{[%clk 00:15:11]} {[%emt 00:00:05]} Nf6 {[%clk 00:15:06]} {[%emt 00:00:03]} 4.
cxd5 {[%clk 00:15:13]} {[%emt 00:00:02]} exd5 {[%clk 00:15:09]} {[%emt
00:00:02]} 5. Bg5 {[%clk 00:15:14]} {[%emt 00:00:04]} Bb4 {[%clk 00:15:05]}
{[%emt 00:00:09]} 6. e3 {[%clk 00:15:11]} {[%emt 00:00:07]} h6 {[%clk
00:15:00]} {[%emt 00:00:11]} 7. Bh4 {[%clk 00:14:54]} {[%emt 00:00:22]} Nc6
{[%clk 00:15:01]} {[%emt 00:00:04]} 8. a3 {[%clk 00:14:55]} {[%emt 00:00:04]}
Bxc3+ {[%clk 00:15:02]} {[%emt 00:00:03]} 9. bxc3 {[%clk 00:14:59]} {[%emt
00:00:02]} Bf5 {[%clk 00:15:02]} {[%emt 00:00:05]} 10. Bd3 {[%clk 00:14:55]}
{[%emt 00:00:07]} Be6 {[%clk 00:14:27]} {[%emt 00:00:42]} 11. Rb1 {[%clk
00:14:50]} {[%emt 00:00:09]} b6 {[%clk 00:13:53]} {[%emt 00:00:41]} 12. Bb5
{[%clk 00:14:32]} {[%emt 00:00:22]} Bd7 {[%clk 00:13:55]} {[%emt 00:00:04]} 13.
Ne2 {[%clk 00:14:30]} {[%emt 00:00:06]} a6 {[%clk 00:13:53]} {[%emt 00:00:08]}
14. Bd3 {[%clk 00:14:31]} {[%emt 00:00:02]} O-O {[%clk 00:13:31]} {[%emt
00:00:28]} 15. O-O {[%clk 00:14:33]} {[%emt 00:00:02]} Re8 {[%clk 00:13:34]}
{[%emt 00:00:04]} 16. c4 {[%clk 00:13:51]} {[%emt 00:00:46]} Be6 {[%clk
00:13:08]} {[%emt 00:00:31]} 17. cxd5 {[%clk 00:13:48]} {[%emt 00:00:08]} Bxd5
{[%clk 00:13:11]} {[%emt 00:00:03]} 18. Nc3 {[%clk 00:13:49]} {[%emt 00:00:03]}
Qd6 {[%clk 00:12:41]} {[%emt 00:00:36]} 19. Bxf6 {[%clk 00:13:25]} {[%emt
00:00:28]} gxf6 {[%clk 00:12:42]} {[%emt 00:00:04]} 20. e4 {[%clk 00:13:04]}
{[%emt 00:00:26]} Be6 {[%clk 00:12:23]} {[%emt 00:00:24]} 21. d5 {[%clk
00:12:50]} {[%emt 00:00:18]} Ne5 {[%clk 00:12:18]} {[%emt 00:00:11]} 22. Bc2
{[%clk 00:10:48]} {[%emt 00:02:06]} Bc8 {[%clk 00:11:47]} {[%emt 00:00:36]} 23.
a4 {[%clk 00:10:13]} {[%emt 00:00:40]} Bg4 {[%clk 00:10:53]} {[%emt 00:00:59]}
24. Qd2 {[%clk 00:09:53]} {[%emt 00:00:24]} h5 {[%clk 00:09:25]} {[%emt
00:01:35]} 25. f3 {[%clk 00:09:18]} {[%emt 00:00:40]} Bd7 {[%clk 00:09:09]}
{[%emt 00:00:22]} 26. Kh1 {[%clk 00:08:52]} {[%emt 00:00:30]} Rad8 {[%clk
00:08:23]} {[%emt 00:00:51]} 27. Ne2 {[%clk 00:08:00]} {[%emt 00:00:56]} Ng6
{[%clk 00:08:19]} {[%emt 00:00:10]} 28. Ng3 {[%clk 00:06:14]} {[%emt 00:01:50]}
h4 {[%clk 00:08:10]} {[%emt 00:00:15]} 29. Nh5 {[%clk 00:06:15]} {[%emt
00:00:04]} Kh7 {[%clk 00:06:50]} {[%emt 00:01:25]} 30. f4 {[%clk 00:05:48]}
{[%emt 00:00:32]} Bg4 {[%clk 00:05:42]} {[%emt 00:01:13]} 31. e5 {[%clk
00:05:49]} {[%emt 00:00:04]} fxe5 {[%clk 00:05:20]} {[%emt 00:00:26]} 32. fxe5
{[%clk 00:05:53]} {[%emt 00:00:02]} Rxe5 {[%clk 00:05:21]} {[%emt 00:00:04]} 33.
Nf6+ {[%clk 00:05:56]} {[%emt 00:00:02]} Kg7 {[%clk 00:05:17]} {[%emt
00:00:10]} 34. Nxg4 {[%clk 00:05:49]} {[%emt 00:00:13]} Rxd5 {[%clk 00:05:08]}
{[%emt 00:00:11]} 35. Qh6+ {[%clk 00:05:40]} {[%emt 00:00:14]} Kg8 {[%clk
00:05:10]} {[%emt 00:00:05]} 36. Nf6+ {[%clk 00:05:41]} {[%emt 00:00:03]} Qxf6
{[%clk 00:05:12]} {[%emt 00:00:02]} 37. Rxf6 {[%clk 00:05:44]} {[%emt
00:00:03]} Nf8 {[%clk 00:04:47]} {[%emt 00:00:31]} 38. Rff1 {[%clk 00:05:25]}
{[%emt 00:00:23]} Rd2 {[%clk 00:04:32]} {[%emt 00:00:20]} 39. Rbd1 {[%clk
00:05:09]} {[%emt 00:00:21]} R2d6 {[%clk 00:03:49]} {[%emt 00:00:53]} 40. Rxd6
{[%clk 00:05:11]} Rxd6 {[%clk 00:03:53]} {[%emt 00:00:04]} 41. Qf4 {[%clk
00:05:09]} {[%emt 00:00:06]} Rd7 {[%clk 00:03:43]} {[%emt 00:00:15]} 42. Bb3
{[%clk 00:05:12]} {[%emt 00:00:02]} Kg7 {[%clk 00:02:47]} {[%emt 00:01:01]} 43.
Bxf7 {[%clk 00:05:10]} {[%emt 00:00:07]} Nh7 {[%clk 00:02:36]} {[%emt
00:00:17]} 44. Qg4+ {[%clk 00:05:07]} {[%emt 00:00:08]} Kf8 {[%clk 00:02:20]}
{[%emt 00:00:21]} 45. Qg8+ {[%clk 00:05:05]} {[%emt 00:00:07]} Ke7 {[%clk
00:02:22]} {[%emt 00:00:03]} 46. Re1+ {[%clk 00:05:06]} {[%emt 00:00:03]} Kd6
{[%clk 00:02:19]} {[%emt 00:00:09]} 47. Qg6+ {[%clk 00:05:03]} {[%emt
00:00:07]} Kc5 {[%clk 00:02:22]} {[%emt 00:00:03]} 48. Rc1+ {[%clk 00:05:00]}
{[%emt 00:00:08]} Kb4 {[%clk 00:02:23]} {[%emt 00:00:04]} 49. Qb1+ {[%clk
00:05:02]} {[%emt 00:00:02]} Ka5 {[%clk 00:02:24]} {[%emt 00:00:04]} 50. Qxh7
{[%clk 00:04:38]} {[%emt 00:00:29]} Rd8 {[%clk 00:02:05]} {[%emt 00:00:25]} 51.
Qf5+ {[%clk 00:04:36]} {[%emt 00:00:05]} c5 {[%clk 00:02:08]} {[%emt 00:00:04]}
52. Rxc5+ {[%clk 00:04:25]} {[%emt 00:00:16]} bxc5 {[%clk 00:01:46]} {[%emt
00:00:27]} 53. Qxc5+ {[%clk 00:04:28]} {[%emt 00:00:02]} Kxa4 {[%clk 00:01:49]}
{[%emt 00:00:02]} 54. Qc4+ {[%clk 00:04:22]} {[%emt 00:00:11]} Ka5 {[%clk
00:01:50]} {[%emt 00:00:04]} 55. Qc7+ {[%clk 00:04:25]} {[%emt 00:00:01]} Ka4
{[%clk 00:01:54]} {[%emt 00:00:02]} 56. Qxd8 {[%clk 00:04:27]} {[%emt
00:00:02]} a5 {[%clk 00:01:58]} {[%emt 00:00:02]} 57. Be8+ {[%clk 00:04:30]}
Kb4 {[%clk 00:02:01]} {[%emt 00:00:02]} 58. Qxh4+ {[%clk 00:04:33]} {[%emt
00:00:02]} Kc3 {[%clk 00:02:05]} {[%emt 00:00:01]} 59. Qa4 {[%clk 00:04:32]}
{[%emt 00:00:06]} Kb2 {[%clk 00:02:08]} {[%emt 00:00:02]} 60. Qxa5 {[%clk
00:04:35]} {[%emt 00:00:03]} Kb1 {[%clk 00:02:11]} {[%emt 00:00:02]} 61. Qd2
{[%clk 00:04:36]} {[%emt 00:00:02]} Ka1 {[%clk 00:02:15]} {[%emt 00:00:02]} 62.
Ba4 {[%clk 00:04:18]} {[%emt 00:00:22]} Kb1 {[%clk 00:02:18]} {[%emt 00:00:03]}
63. Qc2+ {[%clk 00:04:14]} {[%emt 00:00:09]} Ka1 {[%clk 00:02:21]} {[%emt
00:00:03]} 64. Qc3+ {[%clk 00:04:14]} {[%emt 00:00:05]} Kb1 {[%clk 00:02:16]}
{[%emt 00:00:07]} 65. Bc2+ {[%clk 00:04:16]} {[%emt 00:00:06]} Kc1 {[%clk
00:02:17]} {[%emt 00:00:04]} 66. Bb3+ {[%clk 00:04:19]} {[%emt 00:00:02]} Kb1
{[%clk 00:02:20]} {[%emt 00:00:02]} 67. Qc2+ {[%clk 00:04:22]} {[%emt
00:00:02]} Ka1 {[%clk 00:02:24]} {[%emt 00:00:01]} 68. Qc1# {[%clk 00:04:19]}
{[%emt 00:00:01]} 1-0

[Event "Open NK Rapid 2025 bord 26-50"]
[Site "Helmond, Netherlands"]
[Date "2025.05.03"]
[Round "7.22"]
[White "Seth, Aakrit"]
[Black "De Oude, Sybe"]
[Result "1/2-1/2"]
[TimeControl "15 min +5 sec increment"]
[WhiteFideId "34604812"]
[BlackFideId "40110052"]
[WhiteElo "1780"]
[BlackElo "1914"]

1. d4 {[%clk 00:15:08]} {[%emt 00:00:02]} f5 {[%clk 00:15:07]} {[%emt
00:00:04]} 2. Bf4 {[%clk 00:15:07]} {[%emt 00:00:06]} Nf6 {[%clk 00:15:08]}
{[%emt 00:00:05]} 3. e3 {[%clk 00:15:10]} {[%emt 00:00:02]} e6 {[%clk
00:15:12]} {[%emt 00:00:01]} 4. Be2 {[%clk 00:15:09]} {[%emt 00:00:06]} Be7
{[%clk 00:15:14]} {[%emt 00:00:03]} 5. h3 {[%clk 00:14:34]} {[%emt 00:00:39]}
O-O {[%clk 00:15:11]} {[%emt 00:00:08]} 6. Nf3 {[%clk 00:14:36]} {[%emt
00:00:03]} b6 {[%clk 00:14:44]} {[%emt 00:00:32]} 7. c4 {[%clk 00:14:37]}
{[%emt 00:00:04]} d6 {[%clk 00:14:39]} {[%emt 00:00:10]} 8. Nc3 {[%clk
00:14:34]} {[%emt 00:00:08]} Bb7 {[%clk 00:14:26]} {[%emt 00:00:18]} 9. Qc2
{[%clk 00:14:17]} {[%emt 00:00:22]} Ne4 {[%clk 00:14:04]} {[%emt 00:00:26]} 10.
Nxe4 {[%clk 00:14:02]} {[%emt 00:00:21]} Bxe4 {[%clk 00:13:57]} {[%emt
00:00:12]} 11. Bd3 {[%clk 00:14:06]} {[%emt 00:00:01]} Bxd3 {[%clk 00:13:48]}
{[%emt 00:00:15]} 12. Qxd3 {[%clk 00:14:08]} {[%emt 00:00:02]} Qc8 {[%clk
00:11:35]} {[%emt 00:02:19]} 13. O-O {[%clk 00:13:42]} {[%emt 00:00:29]} Na6
{[%clk 00:09:56]} {[%emt 00:01:45]} 14. a3 {[%emt 00:00:41]} c5 {[%clk
00:09:42]} 15. Rfe1 {[%clk 00:13:18]} {[%emt 00:00:12]} Qb7 {[%clk 00:09:00]}
{[%emt 00:00:48]} 16. Bh2 {[%clk 00:12:09]} {[%emt 00:01:13]} Qe4 {[%clk
00:07:36]} {[%emt 00:01:29]} 17. Qxe4 {[%clk 00:11:30]} {[%emt 00:00:44]} fxe4
{[%clk 00:07:40]} {[%emt 00:00:01]} 18. Nd2 {[%clk 00:11:31]} {[%emt 00:00:04]}
d5 {[%clk 00:07:43]} {[%emt 00:00:02]} 19. cxd5 {[%clk 00:09:03]} {[%emt
00:02:33]} exd5 {[%clk 00:07:45]} {[%emt 00:00:03]} 20. Nb3 {[%clk 00:08:49]}
{[%emt 00:00:19]} Rac8 {[%clk 00:06:57]} {[%emt 00:00:53]} 21. dxc5 {[%clk
00:06:54]} {[%emt 00:02:00]} Nxc5 {[%clk 00:06:22]} {[%emt 00:00:40]} 22. Nxc5
{[%clk 00:06:37]} {[%emt 00:00:22]} Rxc5 {[%clk 00:06:22]} {[%emt 00:00:05]} 23.
Be5 {[%clk 00:06:34]} {[%emt 00:00:07]} Rc2 {[%clk 00:06:03]} {[%emt 00:00:25]}
24. Rac1 {[%clk 00:05:47]} {[%emt 00:00:53]} Rfxf2 {[%clk 00:05:41]} {[%emt
00:00:26]} 25. Rxc2 {[%clk 00:05:16]} {[%emt 00:00:36]} Rxc2 {[%clk 00:05:44]}
{[%emt 00:00:02]} 26. Rd1 {[%clk 00:05:17]} {[%emt 00:00:03]} Re2 {[%clk
00:04:34]} {[%emt 00:01:18]} 27. Rxd5 {[%clk 00:05:07]} {[%emt 00:00:14]} Rxe3
{[%clk 00:04:35]} {[%emt 00:00:03]} 28. Rd7 {[%clk 00:05:05]} {[%emt 00:00:07]}
Bf6 {[%clk 00:03:15]} {[%emt 00:01:25]} 29. Bxf6 {[%clk 00:04:31]} {[%emt
00:00:38]} gxf6 {[%clk 00:03:19]} {[%emt 00:00:02]} 30. Rxa7 {[%clk 00:04:34]}
{[%emt 00:00:02]} Re2 {[%clk 00:03:17]} {[%emt 00:00:07]} 31. Re7 {[%clk
00:04:22]} {[%emt 00:00:13]} f5 {[%clk 00:02:53]} {[%emt 00:00:33]} 32. Re5
{[%clk 00:04:23]} {[%emt 00:00:04]} Rxb2 {[%clk 00:02:57]} {[%emt 00:00:02]} 33.
Rxf5 {[%clk 00:04:18]} {[%emt 00:00:10]} Ra2 {[%clk 00:02:42]} {[%emt
00:00:20]} 34. Re5 {[%clk 00:04:09]} {[%emt 00:00:12]} Rxa3 {[%clk 00:02:24]}
{[%emt 00:00:24]} 35. Rxe4 {[%clk 00:04:13]} {[%emt 00:00:01]} Rb3 {[%clk
00:01:40]} {[%emt 00:00:50]} 36. Kf1 {[%clk 00:02:45]} {[%emt 00:01:30]} Kf7
{[%clk 00:01:43]} {[%emt 00:00:04]} 37. Ke1 {[%clk 00:02:44]} {[%emt 00:00:04]}
Kf6 {[%clk 00:01:38]} {[%emt 00:00:12]} 38. Kd1 {[%clk 00:02:41]} {[%emt
00:00:06]} Rb2 {[%clk 00:01:35]} {[%emt 00:00:10]} 39. Rg4 {[%clk 00:02:32]}
{[%emt 00:00:14]} h5 {[%clk 00:01:19]} {[%emt 00:00:21]} 40. Rg3 {[%clk
00:01:38]} {[%emt 00:00:59]} b5 {[%clk 00:01:12]} {[%emt 00:00:13]} 41. Kc1
{[%clk 00:01:39]} {[%emt 00:00:03]} Rf2 {[%clk 00:01:09]} {[%emt 00:00:08]} 42.
Rg8 {[%clk 00:00:38]} {[%emt 00:01:06]} Rf5 {[%clk 00:00:58]} {[%emt 00:00:16]}
43. Rf8+ {[%clk 00:00:27]} {[%emt 00:00:15]} Kg5 {[%clk 00:01:01]} {[%emt
00:00:03]} 44. Rxf5+ {[%clk 00:00:31]} {[%emt 00:00:01]} Kxf5 {[%clk 00:01:04]}
{[%emt 00:00:03]} 45. g4+ {[%clk 00:00:34]} {[%emt 00:00:01]} 1/2-1/2